fUST/lending_fUST_20260516
["ID","MTS","AMOUNT","RATE_DAILY","PERIOD"]
[422367505,1778883040000,-655.21,0.00010958,2]
[422367510,1778883040000,-500.0,0.00010958,2]
[422367512,1778883040000,-500.0,0.00010958,2]
[422367515,1778883040000,-594.56,0.00010958,2]
[422367513,1778883040000,-500.0,0.00010958,2]
[422367508,1778883040000,-701.2,0.00010958,2]
[422367517,1778883040000,-971.81,0.00010958,2]
[422367523,1778883040000,-1648.98,0.00010958,2]
[422367521,1778883040000,-566.07,0.00010958,2]
[422367519,1778883040000,-500.0,0.00010958,2]
[422367496,1778883040000,-500.0,0.00010958,2]
[422367464,1778883040000,-500.0,0.000109,2]
[422367406,1778883040000,-500.0,0.000109,2]
[422367466,1778883040000,-151.0,0.000109,2]
[422367462,1778883040000,-500.0,0.000109,2]
[422367394,1778883040000,-500.0,0.000109,2]
[422367408,1778883040000,-500.0,0.000109,2]
[422367400,1778883040000,-500.0,0.000109,2]
[422367411,1778883040000,-500.0,0.000109,2]
[422367413,1778883040000,-500.0,0.000109,2]
[422367428,1778883040000,-500.0,0.000109,2]
[422367426,1778883040000,-500.0,0.000109,2]
[422367430,1778883040000,-500.0,0.000109,2]
[422367432,1778883040000,-500.0,0.000109,2]
[422367435,1778883040000,-500.0,0.000109,2]
[422367423,1778883040000,-500.0,0.000109,2]
[422367425,1778883040000,-500.0,0.000109,2]
[422367419,1778883040000,-500.0,0.000109,2]
[422367417,1778883040000,-500.0,0.000109,2]
[422367434,1778883040000,-500.0,0.000109,2]
[422367421,1778883040000,-500.0,0.000109,2]
[422367415,1778883040000,-500.0,0.000109,2]
[422367455,1778883040000,-500.0,0.000109,2]
[422367460,1778883040000,-500.0,0.000109,2]
[422367449,1778883040000,-500.0,0.000109,2]
[422367458,1778883040000,-500.0,0.000109,2]
[422367445,1778883040000,-500.0,0.000109,2]
[422367443,1778883040000,-500.0,0.000109,2]
[422367447,1778883040000,-500.0,0.000109,2]
[422367457,1778883040000,-500.0,0.000109,2]
[422367451,1778883040000,-500.0,0.000109,2]
[422367441,1778883040000,-286.54,0.000109,2]
[422367439,1778883040000,-500.0,0.000109,2]
[422367438,1778883040000,-500.0,0.000109,2]
[422367453,1778883040000,-500.0,0.000109,2]
[422367601,1778883041000,-500.0,0.00010958,2]
[422367613,1778883041000,-736.42,0.00010958,2]
[422367610,1778883041000,-2221.42,0.00010958,2]
[422367608,1778883041000,-500.0,0.00010958,2]
[422367606,1778883041000,-1219.83,0.00010958,2]
[422367572,1778883041000,-741.32,0.00010958,2]
[422367595,1778883041000,-500.0,0.00010958,2]
[422367597,1778883041000,-500.0,0.00010958,2]
[422367599,1778883041000,-5028.09,0.00010958,2]
[422367612,1778883041000,-500.0,0.00010958,2]
[422367593,1778883041000,-500.0,0.00010958,2]
[422367604,1778883041000,-500.0,0.00010958,2]
[422367602,1778883041000,-3952.06,0.00010958,2]
[422367614,1778883041000,-500.0,0.00010958,2]
[422367642,1778883041000,-1039.05,0.00010958,2]
[422367628,1778883041000,-500.0,0.00010958,2]
[422367631,1778883041000,-206.68404529,0.00010958,2]
[422367629,1778883041000,-1641.77,0.00010958,2]
[422367633,1778883041000,-648.77,0.00010958,2]
[422367617,1778883041000,-500.0,0.00010958,2]
[422367635,1778883041000,-1989.18,0.00010958,2]
[422367624,1778883041000,-500.0,0.00010958,2]
[422367638,1778883041000,-500.0,0.00010958,2]
[422367637,1778883041000,-5226.82,0.00010958,2]
[422367621,1778883041000,-801.44,0.00010958,2]
[422367640,1778883041000,-1802.64,0.00010958,2]
[422367619,1778883041000,-630.57,0.00010958,2]
[422367623,1778883041000,-1116.43,0.00010958,2]
[422367576,1778883041000,-500.0,0.00010958,2]
[422367616,1778883041000,-1711.74,0.00010958,2]
[422367591,1778883041000,-1008.15,0.00010958,2]
[422367557,1778883041000,-1780.92,0.00010958,2]
[422367589,1778883041000,-521.52,0.00010958,2]
[422367626,1778883041000,-1635.45,0.00010958,2]
[422367528,1778883041000,-500.0,0.00010958,2]
[422367533,1778883041000,-500.0,0.00010958,2]
[422367531,1778883041000,-591.98,0.00010958,2]
[422367530,1778883041000,-500.0,0.00010958,2]
[422367539,1778883041000,-654.25,0.00010958,2]
[422367537,1778883041000,-953.43,0.00010958,2]
[422367535,1778883041000,-500.0,0.00010958,2]
[422367541,1778883041000,-500.0,0.00010958,2]
[422367545,1778883041000,-500.0,0.00010958,2]
[422367546,1778883041000,-500.0,0.00010958,2]
[422367543,1778883041000,-967.92,0.00010958,2]
[422367548,1778883041000,-300.33989053,0.00010958,2]
[422367553,1778883041000,-1109.9,0.00010958,2]
[422367574,1778883041000,-841.13,0.00010958,2]
[422367550,1778883041000,-645.74,0.00010958,2]
[422367552,1778883041000,-500.0,0.00010958,2]
[422367561,1778883041000,-500.0,0.00010958,2]
[422367555,1778883041000,-500.0,0.00010958,2]
[422367564,1778883041000,-500.0,0.00010958,2]
[422367563,1778883041000,-500.0,0.00010958,2]
[422367566,1778883041000,-1868.62,0.00010958,2]
[422367568,1778883041000,-500.0,0.00010958,2]
[422367578,1778883041000,-500.0,0.00010958,2]
[422367580,1778883041000,-500.0,0.00010958,2]
[422367582,1778883041000,-500.0,0.00010958,2]
[422367584,1778883041000,-500.0,0.00010958,2]
[422367586,1778883041000,-500.0,0.00010958,2]
[422367570,1778883041000,-500.0,0.00010958,2]
[422367588,1778883041000,-869.13,0.00010958,2]
[422367559,1778883041000,-500.0,0.00010958,2]
[422367645,1778883041000,-500.0,0.00010958,2]
[422367647,1778883041000,-526.91,0.00010958,2]
[422367665,1778883041000,-5166.9,0.00010958,2]
[422367718,1778883041000,-2947.19,0.00010958,2]
[422367728,1778883041000,-1544.96,0.00010958,2]
[422367720,1778883041000,-679.65,0.00010958,2]
[422367732,1778883041000,-2213.21,0.00010958,2]
[422367729,1778883041000,-691.12,0.00010958,2]
[422367722,1778883041000,-2082.29,0.00010958,2]
[422367734,1778883041000,-2356.88,0.00010958,2]
[422367737,1778883041000,-500.0,0.00010958,2]
[422367724,1778883041000,-598.33,0.00010958,2]
[422367735,1778883041000,-2786.71,0.00010958,2]
[422367726,1778883041000,-6818.39,0.00010958,2]
[422367741,1778883041000,-500.0,0.00010958,2]
[422367743,1778883041000,-988.36,0.00010958,2]
[422367754,1778883041000,-557.5788265,0.0001105,2]
[422367756,1778883041000,-773.2413689,0.00011052,2]
[422367758,1778883041000,-185.0,0.00011072,2]
[422367760,1778883041000,-500.0,0.00011076,2]
[422367744,1778883041000,-4423.04,0.00010958,2]
[422367752,1778883041000,-500.0,0.00011044,2]
[422367747,1778883041000,-500.0,0.00010958,2]
[422367748,1778883041000,-228.0,0.00010959,3]
[422367750,1778883041000,-745.65223616,0.00010997,2]
[422367762,1778883041000,-793.0,0.000111,2]
[422367764,1778883041000,-801.85129955,0.00011107,2]
[422367766,1778883041000,-4739.42178736,0.00011132,2]
[422367768,1778883041000,-831.51979763,0.00011162,2]
[422367770,1778883041000,-862.28603014,0.00011217,2]
[422367774,1778883041000,-63039.6316806,0.00011225,2]
[422367772,1778883041000,-1024.2663704,0.00011225,2]
[422367714,1778883041000,-35117.9,0.00010958,2]
[422367710,1778883041000,-1712.78,0.00010958,2]
[422367739,1778883041000,-2831.53,0.00010958,2]
[422367712,1778883041000,-1949.4,0.00010958,2]
[422367654,1778883041000,-500.0,0.00010958,2]
[422367716,1778883041000,-880.65,0.00010958,2]
[422367649,1778883041000,-1548.2,0.00010958,2]
[422367652,1778883041000,-6006.5,0.00010958,2]
[422367651,1778883041000,-1646.01,0.00010958,2]
[422367657,1778883041000,-381.81304442,0.00010958,2]
[422367661,1778883041000,-2403.98,0.00010958,2]
[422367663,1778883041000,-500.0,0.00010958,2]
[422367644,1778883041000,-504.24,0.00010958,2]
[422367659,1778883041000,-1217.59,0.00010958,2]
[422367667,1778883041000,-500.0,0.00010958,2]
[422367671,1778883041000,-1605.22,0.00010958,2]
[422367669,1778883041000,-1003.33,0.00010958,2]
[422367676,1778883041000,-500.0,0.00010958,2]
[422367682,1778883041000,-4303.3,0.00010958,2]
[422367655,1778883041000,-4922.52,0.00010958,2]
[422367675,1778883041000,-500.0,0.00010958,2]
[422367680,1778883041000,-500.0,0.00010958,2]
[422367702,1778883041000,-991.58,0.00010958,2]
[422367700,1778883041000,-500.0,0.00010958,2]
[422367698,1778883041000,-2037.24,0.00010958,2]
[422367696,1778883041000,-500.0,0.00010958,2]
[422367694,1778883041000,-575.89,0.00010958,2]
[422367692,1778883041000,-1543.16,0.00010958,2]
[422367708,1778883041000,-748.87,0.00010958,2]
[422367690,1778883041000,-3104.11,0.00010958,2]
[422367686,1778883041000,-989.34,0.00010958,2]
[422367684,1778883041000,-500.0,0.00010958,2]
[422367678,1778883041000,-500.0,0.00010958,2]
[422367673,1778883041000,-500.0,0.00010958,2]
[422367688,1778883041000,-1973.81,0.00010958,2]
[422367860,1778883042000,-650.0,0.00011232,2]
[422367848,1778883042000,-650.0,0.00011232,2]
[422367859,1778883042000,-650.0,0.00011232,2]
[422367841,1778883042000,-650.0,0.00011232,2]
[422367850,1778883042000,-650.0,0.00011232,2]
[422367854,1778883042000,-650.0,0.00011232,2]
[422367855,1778883042000,-650.0,0.00011232,2]
[422367844,1778883042000,-650.0,0.00011232,2]
[422367846,1778883042000,-650.0,0.00011232,2]
[422367842,1778883042000,-650.0,0.00011232,2]
[422367852,1778883042000,-650.0,0.00011232,2]
[422367857,1778883042000,-650.0,0.00011232,2]
[422367862,1778883042000,-650.0,0.00011232,2]
[422367870,1778883042000,-650.0,0.00011232,2]
[422367866,1778883042000,-650.0,0.00011232,2]
[422367879,1778883042000,-650.0,0.00011232,2]
[422367881,1778883042000,-650.0,0.00011232,2]
[422367868,1778883042000,-650.0,0.00011232,2]
[422367883,1778883042000,-166.0,0.00011232,2]
[422367887,1778883042000,-166.0,0.00011232,2]
[422367889,1778883042000,-650.0,0.00011232,2]
[422367885,1778883042000,-650.0,0.00011232,2]
[422367872,1778883042000,-650.0,0.00011232,2]
[422367874,1778883042000,-650.0,0.00011232,2]
[422367892,1778883042000,-278.61022012,0.00011232,2]
[422367876,1778883042000,-650.0,0.00011232,2]
[422367891,1778883042000,-166.0,0.00011232,2]
[422367837,1778883042000,-650.0,0.00011232,2]
[422367864,1778883042000,-650.0,0.00011232,2]
[422367835,1778883042000,-650.0,0.00011232,2]
[422367779,1778883042000,-166.0,0.00011232,2]
[422367818,1778883042000,-500.0,0.00011232,2]
[422367878,1778883042000,-650.0,0.00011232,2]
[422367781,1778883042000,-166.0,0.00011232,2]
[422367783,1778883042000,-166.0,0.00011232,2]
[422367784,1778883042000,-166.0,0.00011232,2]
[422367786,1778883042000,-166.0,0.00011232,2]
[422367788,1778883042000,-166.0,0.00011232,2]
[422367790,1778883042000,-166.0,0.00011232,2]
[422367777,1778883042000,-166.0,0.00011232,2]
[422367775,1778883042000,-887.12547015,0.00011232,2]
[422367804,1778883042000,-156.0,0.00011232,2]
[422367808,1778883042000,-156.0,0.00011232,2]
[422367792,1778883042000,-172.0,0.00011232,2]
[422367806,1778883042000,-156.0,0.00011232,2]
[422367810,1778883042000,-156.0,0.00011232,2]
[422367839,1778883042000,-650.0,0.00011232,2]
[422367796,1778883042000,-156.0,0.00011232,2]
[422367794,1778883042000,-156.0,0.00011232,2]
[422367812,1778883042000,-156.0,0.00011232,2]
[422367814,1778883042000,-156.0,0.00011232,2]
[422367816,1778883042000,-160.55442801,0.00011232,2]
[422367802,1778883042000,-156.0,0.00011232,2]
[422367800,1778883042000,-156.0,0.00011232,2]
[422367820,1778883042000,-650.0,0.00011232,2]
[422367823,1778883042000,-650.0,0.00011232,2]
[422367831,1778883042000,-650.0,0.00011232,2]
[422367833,1778883042000,-650.0,0.00011232,2]
[422367825,1778883042000,-650.0,0.00011232,2]
[422367821,1778883042000,-650.0,0.00011232,2]
[422367829,1778883042000,-650.0,0.00011232,2]
[422367827,1778883042000,-650.0,0.00011232,2]
[422367798,1778883042000,-156.0,0.00011232,2]
[422367894,1778883042000,-650.0,0.00011232,2]
[422367932,1778883042000,-167.0,0.00011232,2]
[422367911,1778883042000,-650.0,0.00011232,2]
[422367968,1778883042000,-500.0,0.00011232,2]
[422367966,1778883042000,-500.0,0.00011232,2]
[422367970,1778883042000,-500.0,0.00011232,2]
[422367980,1778883042000,-500.0,0.00011232,2]
[422367982,1778883042000,-594.56,0.00011232,2]
[422367984,1778883042000,-971.81,0.00011232,2]
[422367989,1778883042000,-1648.98,0.00011232,2]
[422367976,1778883042000,-500.0,0.00011232,2]
[422367987,1778883042000,-566.07,0.00011232,2]
[422367978,1778883042000,-500.0,0.00011232,2]
[422367972,1778883042000,-655.21,0.00011232,2]
[422367985,1778883042000,-500.0,0.00011232,2]
[422367974,1778883042000,-701.2,0.00011232,2]
[422367991,1778883042000,-500.0,0.00011232,2]
[422367995,1778883042000,-591.98,0.00011232,2]
[422367993,1778883042000,-500.0,0.00011232,2]
[422367998,1778883042000,-500.0,0.00011232,2]
[422368003,1778883042000,-654.25,0.00011232,2]
[422368001,1778883042000,-953.43,0.00011232,2]
[422367999,1778883042000,-500.0,0.00011232,2]
[422368005,1778883042000,-500.0,0.00011232,2]
[422368016,1778883042000,-645.74,0.00011232,2]
[422368009,1778883042000,-500.0,0.00011232,2]
[422368007,1778883042000,-967.92,0.00011232,2]
[422368020,1778883042000,-1109.9,0.00011232,2]
[422368012,1778883042000,-500.0,0.00011232,2]
[422368018,1778883042000,-500.0,0.00011232,2]
[422368022,1778883042000,-500.0,0.00011232,2]
[422367898,1778883042000,-650.0,0.00011232,2]
[422367951,1778883042000,-750.29,0.00011232,2]
[422367954,1778883042000,-746.25,0.00011232,2]
[422368023,1778883042000,-1780.92,0.00011232,2]
[422367960,1778883042000,-1585.73,0.00011232,2]
[422367964,1778883042000,-500.0,0.00011232,2]
[422367896,1778883042000,-650.0,0.00011232,2]
[422367907,1778883042000,-650.0,0.00011232,2]
[422367900,1778883042000,-650.0,0.00011232,2]
[422367905,1778883042000,-650.0,0.00011232,2]
[422367909,1778883042000,-650.0,0.00011232,2]
[422367902,1778883042000,-650.0,0.00011232,2]
[422367903,1778883042000,-650.0,0.00011232,2]
[422367912,1778883042000,-650.0,0.00011232,2]
[422367916,1778883042000,-650.0,0.00011232,2]
[422367918,1778883042000,-650.0,0.00011232,2]
[422367920,1778883042000,-650.0,0.00011232,2]
[422367924,1778883042000,-775.57428312,0.00011232,2]
[422367926,1778883042000,-500.0,0.00011232,2]
[422367922,1778883042000,-650.0,0.00011232,2]
[422367914,1778883042000,-650.0,0.00011232,2]
[422367930,1778883042000,-167.0,0.00011232,2]
[422367945,1778883042000,-500.0,0.00011232,2]
[422367928,1778883042000,-167.0,0.00011232,2]
[422367949,1778883042000,-500.0,0.00011232,2]
[422367953,1778883042000,-500.0,0.00011232,2]
[422367947,1778883042000,-633.54,0.00011232,2]
[422367957,1778883042000,-3544.95337874,0.00011232,2]
[422367958,1778883042000,-596.44,0.00011232,2]
[422367941,1778883042000,-500.0,0.00011232,2]
[422367963,1778883042000,-500.0,0.00011232,2]
[422367939,1778883042000,-169.39236129,0.00011232,2]
[422367934,1778883042000,-167.0,0.00011232,2]
[422367936,1778883042000,-167.0,0.00011232,2]
[422367938,1778883042000,-167.0,0.00011232,2]
[422367943,1778883042000,-500.0,0.00011232,2]
[422368110,1778883043000,-1548.2,0.00011232,2]
[422368111,1778883043000,-1646.01,0.00011232,2]
[422368109,1778883043000,-526.91,0.00011232,2]
[422368099,1778883043000,-1989.18,0.00011232,2]
[422368093,1778883043000,-1116.43,0.00011232,2]
[422368087,1778883043000,-1711.74,0.00011232,2]
[422368097,1778883043000,-1641.77,0.00011232,2]
[422368081,1778883043000,-500.0,0.00011232,2]
[422368079,1778883043000,-2221.42,0.00011232,2]
[422368077,1778883043000,-315.88875657,0.00011232,2]
[422368112,1778883043000,-6006.5,0.00011232,2]
[422368085,1778883043000,-500.0,0.00011232,2]
[422368098,1778883043000,-648.77,0.00011232,2]
[422368118,1778883043000,-5166.9,0.00011232,2]
[422368100,1778883043000,-5226.82,0.00011232,2]
[422368113,1778883043000,-500.0,0.00011232,2]
[422368114,1778883043000,-4922.52,0.00011232,2]
[422368102,1778883043000,-500.0,0.00011232,2]
[422368107,1778883043000,-504.24,0.00011232,2]
[422368104,1778883043000,-1802.64,0.00011232,2]
[422368108,1778883043000,-500.0,0.00011232,2]
[422368106,1778883043000,-1039.05,0.00011232,2]
[422368117,1778883043000,-500.0,0.00011232,2]
[422368127,1778883043000,-4303.3,0.00011232,2]
[422368116,1778883043000,-2403.98,0.00011232,2]
[422368123,1778883043000,-500.0,0.00011232,2]
[422368121,1778883043000,-1605.22,0.00011232,2]
[422368092,1778883043000,-801.44,0.00011232,2]
[422368115,1778883043000,-1217.59,0.00011232,2]
[422368083,1778883043000,-736.42,0.00011232,2]
[422368064,1778883043000,-410.42750527,0.00011232,2]
[422368096,1778883043000,-500.0,0.00011232,2]
[422368120,1778883043000,-1003.33,0.00011232,2]
[422368032,1778883043000,-500.0,0.00011232,2]
[422368034,1778883043000,-1868.62,0.00011232,2]
[422368040,1778883043000,-741.32,0.00011232,2]
[422368036,1778883043000,-500.0,0.00011232,2]
[422368038,1778883043000,-500.0,0.00011232,2]
[422368042,1778883043000,-841.13,0.00011232,2]
[422368026,1778883043000,-500.0,0.00011232,2]
[422368044,1778883043000,-500.0,0.00011232,2]
[422368048,1778883043000,-500.0,0.00011232,2]
[422368030,1778883043000,-500.0,0.00011232,2]
[422368028,1778883043000,-500.0,0.00011232,2]
[422368046,1778883043000,-500.0,0.00011232,2]
[422368050,1778883043000,-500.0,0.00011232,2]
[422368052,1778883043000,-500.0,0.00011232,2]
[422368056,1778883043000,-869.13,0.00011232,2]
[422368062,1778883043000,-500.0,0.00011232,2]
[422368066,1778883043000,-500.0,0.00011232,2]
[422368058,1778883043000,-521.52,0.00011232,2]
[422368054,1778883043000,-500.0,0.00011232,2]
[422368060,1778883043000,-1008.15,0.00011232,2]
[422368070,1778883043000,-500.0,0.00011232,2]
[422368068,1778883043000,-5028.09,0.00011232,2]
[422368072,1778883043000,-3952.06,0.00011232,2]
[422368074,1778883043000,-500.0,0.00011232,2]
[422368076,1778883043000,-1219.83,0.00011232,2]
[422368088,1778883043000,-500.0,0.00011232,2]
[422368090,1778883043000,-630.57,0.00011232,2]
[422368094,1778883043000,-500.0,0.00011232,2]
[422368095,1778883043000,-1635.45,0.00011232,2]
[422368128,1778883043000,-500.0,0.00011232,2]
[422368145,1778883043000,-2082.29,0.00011232,2]
[422368122,1778883043000,-500.0,0.00011232,2]
[422368161,1778883043000,-927.27566595,0.00011327,2]
[422368157,1778883043000,-4423.04,0.00011232,2]
[422368154,1778883043000,-2831.53,0.00011232,2]
[422368160,1778883043000,-894.19061326,0.00011272,2]
[422368164,1778883043000,-344.0,0.00011376,2]
[422368167,1778883043000,-310.51878293,0.00011501,2]
[422368168,1778883043000,-1931.3157,0.00011506,2]
[422368166,1778883043000,-482.00886057,0.00011486,2]
[422368165,1778883043000,-961.58486559,0.00011382,2]
[422368119,1778883043000,-500.0,0.00011232,2]
[422368169,1778883043000,-1337.0752,0.00011506,2]
[422368175,1778883043000,-633.54,0.00011506,2]
[422368176,1778883043000,-485.84468755,0.00011506,2]
[422368173,1778883043000,-500.0,0.00011506,2]
[422368170,1778883043000,-500.0,0.00011506,2]
[422368172,1778883043000,-500.0,0.00011506,2]
[422368171,1778883043000,-500.0,0.00011506,2]
[422368188,1778883043000,-655.21,0.00011506,2]
[422368178,1778883043000,-500.0,0.00011506,2]
[422368177,1778883043000,-750.29,0.00011506,2]
[422368179,1778883043000,-746.25,0.00011506,2]
[422368180,1778883043000,-596.44,0.00011506,2]
[422368181,1778883043000,-1493.6555214,0.00011506,2]
[422368182,1778883043000,-92.0744786,0.00011506,2]
[422368185,1778883043000,-500.0,0.00011506,2]
[422368184,1778883043000,-500.0,0.00011506,2]
[422368183,1778883043000,-500.0,0.00011506,2]
[422368186,1778883043000,-500.0,0.00011506,2]
[422368187,1778883043000,-500.0,0.00011506,2]
[422368159,1778883043000,-160.0,0.00011236,3]
[422368155,1778883043000,-571.98070012,0.00011232,2]
[422368174,1778883043000,-500.0,0.00011506,2]
[422368158,1778883043000,-500.0,0.00011232,2]
[422368124,1778883043000,-500.0,0.00011232,2]
[422368125,1778883043000,-500.0,0.00011232,2]
[422368126,1778883043000,-500.0,0.00011232,2]
[422368156,1778883043000,-988.36,0.00011232,2]
[422368133,1778883043000,-575.89,0.00011232,2]
[422368134,1778883043000,-500.0,0.00011232,2]
[422368131,1778883043000,-3104.11,0.00011232,2]
[422368132,1778883043000,-1543.16,0.00011232,2]
[422368130,1778883043000,-1973.81,0.00011232,2]
[422368135,1778883043000,-2037.24,0.00011232,2]
[422368142,1778883043000,-880.65,0.00011232,2]
[422368138,1778883043000,-748.87,0.00011232,2]
[422368139,1778883043000,-1712.78,0.00011232,2]
[422368137,1778883043000,-991.58,0.00011232,2]
[422368129,1778883043000,-989.34,0.00011232,2]
[422368140,1778883043000,-1949.4,0.00011232,2]
[422368141,1778883043000,-35117.9,0.00011232,2]
[422368153,1778883043000,-500.0,0.00011232,2]
[422368151,1778883043000,-2356.88,0.00011232,2]
[422368162,1778883043000,-500.0,0.0001135,2]
[422368152,1778883043000,-2786.71,0.00011232,2]
[422368149,1778883043000,-691.12,0.00011232,2]
[422368163,1778883043000,-199.5662,0.00011369,2]
[422368148,1778883043000,-1544.96,0.00011232,2]
[422368147,1778883043000,-6818.39,0.00011232,2]
[422368146,1778883043000,-598.33,0.00011232,2]
[422368143,1778883043000,-2947.19,0.00011232,2]
[422368144,1778883043000,-679.65,0.00011232,2]
[422368150,1778883043000,-2213.21,0.00011232,2]
[422368136,1778883043000,-500.0,0.00011232,2]
[422368204,1778883044000,-654.25,0.00011506,2]
[422368214,1778883044000,-1780.92,0.00011506,2]
[422368216,1778883044000,-500.0,0.00011506,2]
[422368189,1778883044000,-701.2,0.00011506,2]
[422368206,1778883044000,-967.92,0.00011506,2]
[422368211,1778883044000,-500.0,0.00011506,2]
[422368203,1778883044000,-953.43,0.00011506,2]
[422368197,1778883044000,-1648.98,0.00011506,2]
[422368208,1778883044000,-500.0,0.00011506,2]
[422368196,1778883044000,-566.07,0.00011506,2]
[422368193,1778883044000,-594.56,0.00011506,2]
[422368198,1778883044000,-500.0,0.00011506,2]
[422368195,1778883044000,-500.0,0.00011506,2]
[422368201,1778883044000,-591.7339689,0.00011506,2]
[422368202,1778883044000,-500.0,0.00011506,2]
[422368200,1778883044000,-591.98,0.00011506,2]
[422368190,1778883044000,-500.0,0.00011506,2]
[422368194,1778883044000,-971.81,0.00011506,2]
[422368212,1778883044000,-1109.9,0.00011506,2]
[422368192,1778883044000,-500.0,0.00011506,2]
[422368191,1778883044000,-500.0,0.00011506,2]
[422368199,1778883044000,-500.0,0.00011506,2]
[422368207,1778883044000,-500.0,0.00011506,2]
[422368230,1778883044000,-500.0,0.00011506,2]
[422368205,1778883044000,-500.0,0.00011506,2]
[422368210,1778883044000,-645.74,0.00011506,2]
[422368242,1778883044000,-500.0,0.00011506,2]
[422368243,1778883044000,-2922.40111646,0.00011506,2]
[422368238,1778883044000,-801.70837865,0.00011506,2]
[422368232,1778883044000,-500.0,0.00011506,2]
[422368237,1778883044000,-500.0,0.00011506,2]
[422368234,1778883044000,-521.52,0.00011506,2]
[422368233,1778883044000,-869.13,0.00011506,2]
[422368235,1778883044000,-1008.15,0.00011506,2]
[422368231,1778883044000,-500.0,0.00011506,2]
[422368219,1778883044000,-500.0,0.00011506,2]
[422368236,1778883044000,-500.0,0.00011506,2]
[422368226,1778883044000,-841.13,0.00011506,2]
[422368227,1778883044000,-500.0,0.00011506,2]
[422368213,1778883044000,-500.0,0.00011506,2]
[422368221,1778883044000,-500.0,0.00011506,2]
[422368222,1778883044000,-1868.62,0.00011506,2]
[422368217,1778883044000,-500.0,0.00011506,2]
[422368225,1778883044000,-741.32,0.00011506,2]
[422368229,1778883044000,-500.0,0.00011506,2]
[422368228,1778883044000,-500.0,0.00011506,2]
[422368223,1778883044000,-500.0,0.00011506,2]
[422368224,1778883044000,-500.0,0.00011506,2]
[422368260,1778883046000,-801.44,0.00011506,2]
[422368261,1778883046000,-1116.43,0.00011506,2]
[422368252,1778883046000,-1219.83,0.00011506,2]
[422368253,1778883046000,-2221.42,0.00011506,2]
[422368262,1778883046000,-500.0,0.00011506,2]
[422368257,1778883046000,-1711.74,0.00011506,2]
[422368258,1778883046000,-500.0,0.00011506,2]
[422368254,1778883046000,-500.0,0.00011506,2]
[422368255,1778883046000,-736.42,0.00011506,2]
[422368250,1778883046000,-1029.65888354,0.00011506,2]
[422368251,1778883046000,-500.0,0.00011506,2]
[422368263,1778883046000,-1635.45,0.00011506,2]
[422368259,1778883046000,-630.57,0.00011506,2]
[422368273,1778883046000,-500.0,0.00011506,2]
[422368271,1778883046000,-1039.05,0.00011506,2]
[422368272,1778883046000,-504.24,0.00011506,2]
[422368270,1778883046000,-1802.64,0.00011506,2]
[422368269,1778883046000,-500.0,0.00011506,2]